fUSD/lending_fUSD_20241114
["ID","MTS","AMOUNT","RATE_DAILY","PERIOD"]
[342183859,1731561051636,-150.0,0.00014543,2]
[342183860,1731561051646,-1340.29,0.00014545,2]
[342183861,1731561051655,-168.27,0.00014586,2]
[342183862,1731561051665,-1054.0,0.00014603,2]
[342183863,1731561051674,-150.0,0.00014618,2]
[342183864,1731561051683,-160.95119545,0.00014645,2]
[342183865,1731561051693,-500.0,0.00014645,2]
[342183866,1731561051702,-500.0,0.00014645,2]
[342183867,1731561051711,-500.0,0.00014645,2]
[342183868,1731561051721,-500.0,0.00014645,2]
[342183869,1731561051731,-500.0,0.00014645,2]
[342183870,1731561051740,-500.0,0.00014645,2]
[342183871,1731561051750,-500.0,0.00014645,2]
[342183872,1731561051759,-500.0,0.00014645,2]
[342183873,1731561051768,-695.46269875,0.00014645,2]
[342183874,1731561051777,-500.0,0.00014645,2]
[342183875,1731561051787,-602.89207643,0.00014645,2]
[342183876,1731561051796,-150.0,0.00014645,2]
[342183877,1731561051805,-150.0,0.00014645,2]
[342183878,1731561051815,-166.25199736,0.00014645,2]
[342183879,1731561051824,-150.0,0.00014645,2]
[342183880,1731561051833,-257.31691907,0.00014645,2]
[342183881,1731561051843,-150.0,0.00014645,2]
[342183882,1731561051853,-150.0,0.00014645,2]
[342183883,1731561051863,-155.4548646,0.00014645,2]
[342183884,1731561051872,-150.0,0.00014645,2]
[342183885,1731561051881,-150.0,0.00014645,2]
[342183886,1731561051890,-150.0,0.00014645,2]
[342183887,1731561051899,-198.20131134,0.00014645,2]
[342183888,1731561051909,-500.0,0.00014645,2]
[342183889,1731561051918,-500.0,0.00014645,2]
[342183890,1731561051927,-500.0,0.00014645,2]
[342183891,1731561051936,-500.0,0.00014645,2]
[342183892,1731561051945,-500.0,0.00014645,2]
[342183893,1731561051954,-500.0,0.00014645,2]
[342183894,1731561051963,-500.0,0.00014645,2]
[342183895,1731561051972,-500.0,0.00014645,2]
[342183896,1731561051981,-500.0,0.00014645,2]
[342183897,1731561051990,-500.0,0.00014645,2]
[342183898,1731561051999,-500.0,0.00014645,2]
[342183899,1731561052008,-500.0,0.00014645,2]
[342183900,1731561052017,-500.0,0.00014645,2]
[342183901,1731561052027,-500.0,0.00014645,2]
[342183902,1731561052035,-500.0,0.00014645,2]
[342183903,1731561052045,-792.01081983,0.00014645,2]
[342183904,1731561052054,-991.58952557,0.00014645,2]
[342183905,1731561052063,-150.0,0.00014645,2]
[342183906,1731561052072,-500.0,0.00014645,2]
[342183907,1731561052081,-500.0,0.00014645,2]
[342183908,1731561052090,-500.0,0.00014645,2]
[342183909,1731561052101,-500.0,0.00014645,2]
[342183910,1731561052110,-500.0,0.00014645,2]
[342183911,1731561052120,-500.0,0.00014645,2]
[342183912,1731561052132,-500.0,0.00014645,2]
[342183913,1731561052141,-760.83896169,0.00014645,2]
[342183914,1731561052150,-150.0,0.00014645,2]
[342183915,1731561052159,-500.0,0.00014645,2]
[342183916,1731561052168,-500.0,0.00014645,2]
[342183917,1731561052178,-500.0,0.00014645,2]
[342183918,1731561052187,-500.0,0.00014645,2]
[342183919,1731561052196,-500.0,0.00014645,2]
[342183920,1731561052206,-500.0,0.00014645,2]
[342183921,1731561052217,-500.0,0.00014645,2]
[342183922,1731561052227,-500.0,0.00014645,2]
[342183923,1731561052236,-500.0,0.00014645,2]
[342183924,1731561052245,-500.0,0.00014645,2]
[342183925,1731561052255,-576.0,0.00014645,2]
[342183926,1731561052264,-150.0,0.00014645,2]
[342183927,1731561052273,-150.0,0.00014645,2]
[342183928,1731561052283,-150.0,0.00014645,2]
[342183929,1731561052292,-150.0,0.00014645,2]
[342183930,1731561052301,-150.0,0.00014645,2]
[342183931,1731561052311,-220.57452717,0.00014645,2]
[342183932,1731561052321,-500.0,0.00014645,2]
[342183933,1731561052330,-500.0,0.00014645,2]
[342183934,1731561052339,-500.0,0.00014645,2]
[342183935,1731561052348,-500.0,0.00014645,2]
[342183936,1731561052366,-929.91607529,0.00014645,2]
[342183937,1731561052375,-500.0,0.00014645,2]
[342183938,1731561052385,-500.0,0.00014645,2]
[342183939,1731561052394,-687.96396121,0.00014645,2]
[342183940,1731561052404,-1083.97,0.00014657,2]
[342183941,1731561052413,-1487.77,0.00014657,2]
[342183942,1731561052423,-277.83311984,0.00014669,2]
[342183943,1731561052433,-1500.0,0.0001467,2]
[342183944,1731561052789,-200.0,0.00014677,2]
[342183945,1731561052799,-150.0,0.00014699,2]
[342183946,1731561052808,-1785.89,0.00014708,2]
[342183947,1731561052818,-150.0,0.00014726,2]
[342183948,1731561052827,-150.0,0.00014759,2]
[342183949,1731561052837,-150.0,0.00014768,2]
[342183950,1731561052846,-150.0,0.0001478,2]
[342183951,1731561052859,-1083.97,0.00014794,2]
[342183952,1731561052869,-1500.0,0.00014823,2]
[342183953,1731561052878,-1500.0,0.00014834,2]
[342183954,1731561052888,-150.0,0.00014838,2]
[342183955,1731561052899,-12036.78609308,0.0001485,2]
[342183956,1731561052908,-150.0,0.00014853,2]
[342183957,1731561052918,-150.0,0.00014866,2]
[342183958,1731561052927,-8000.0,0.00014874,3]
[342183959,1731561052937,-150.0,0.00014874,2]
[342183960,1731561052946,-150.0,0.00014874,2]
[342183961,1731561052956,-17437.17440252,0.00014899,2]
[342183962,1731561052965,-1005.8717,0.00014899,2]
[342183963,1731561052975,-1000.0,0.00014899,2]
[342183964,1731561052984,-1000.0,0.00014899,2]
[342183965,1731561052993,-5762.3223488,0.000149,2]
[342183966,1731561053003,-2000.0,0.000149,2]
[342183967,1731561053013,-2000.0,0.000149,2]
[342183968,1731561053022,-2000.0,0.000149,2]
[342183969,1731561053032,-2000.0,0.000149,2]
[342183970,1731561053041,-2000.0,0.000149,2]
[342183971,1731561053050,-2000.0,0.000149,2]
[342183972,1731561053059,-2000.0,0.000149,2]
[342183973,1731561053069,-2000.0,0.000149,2]
[342183974,1731561053078,-2017.8432,0.000149,2]
[342183975,1731561053087,-213.89008818,0.000149,2]
[342183976,1731561053097,-213.89008816,0.000149,2]
[342183977,1731561053110,-213.89008816,0.000149,2]
[342183978,1731561053119,-3000.0,0.000149,2]
[342183979,1731561053130,-779.94839463,0.000149,2]
[342183980,1731561053144,-779.94839463,0.000149,2]
[342183981,1731561053158,-779.94839463,0.000149,2]
[342183982,1731561053168,-779.94839463,0.000149,2]
[342183983,1731561053179,-779.94839463,0.000149,2]
[342183984,1731561053189,-779.94839463,0.000149,2]
[342183985,1731561053199,-779.94839463,0.000149,2]
[342183986,1731561053209,-779.94839463,0.000149,2]
[342183987,1731561053223,-779.94839463,0.000149,2]
[342183988,1731561053232,-779.94839463,0.000149,2]
[342183989,1731561053242,-779.94839463,0.000149,2]
[342183990,1731561053251,-779.94839463,0.000149,2]
[342183991,1731561053261,-779.94839463,0.000149,2]
[342183992,1731561053271,-779.94839463,0.000149,2]
[342183993,1731561053280,-779.94839463,0.000149,2]
[342183994,1731561053290,-779.94839463,0.000149,2]
[342183995,1731561053299,-779.94839463,0.000149,2]
[342183996,1731561053309,-779.94839463,0.000149,2]
[342183997,1731561053319,-779.94839463,0.000149,2]
[342183998,1731561053329,-779.94,0.000149,2]
[342183999,1731561053338,-777.60236772,0.000149,2]
[342184000,1731561053348,-777.60236772,0.000149,2]
[342184001,1731561053360,-777.60236772,0.000149,2]
[342184002,1731561053371,-777.60236772,0.000149,2]
[342184003,1731561053385,-777.60236772,0.000149,2]
[342184004,1731561053400,-777.60236772,0.000149,2]
[342184005,1731561053413,-777.60236772,0.000149,2]
[342184006,1731561053423,-777.60236772,0.000149,2]
[342184007,1731561053434,-777.60236772,0.000149,2]
[342184008,1731561053443,-777.60236772,0.000149,2]
[342184009,1731561053453,-777.60236772,0.000149,2]
[342184010,1731561053463,-777.60236772,0.000149,2]
[342184011,1731561053473,-777.60236772,0.000149,2]
[342184012,1731561053482,-777.60236772,0.000149,2]
[342184013,1731561053492,-777.60236772,0.000149,2]
[342184014,1731561053502,-777.60236772,0.000149,2]
[342184015,1731561053512,-777.60236772,0.000149,2]
[342184016,1731561053522,-777.60236772,0.000149,2]
[342184017,1731561053531,-777.60236772,0.000149,2]
[342184018,1731561053540,-777.6,0.000149,2]
[342184019,1731561053551,-4101.0720106,0.000149,2]
[342184020,1731561053561,-4101.0720106,0.000149,2]
[342184021,1731561053571,-4101.0720106,0.000149,2]
[342184022,1731561053580,-4101.0720106,0.000149,2]
[342184023,1731561053591,-4101.0720106,0.000149,2]
[342184024,1731561053600,-4101.0720106,0.000149,2]
[342184025,1731561053611,-4101.0720106,0.000149,2]
[342184026,1731561053622,-4101.0720106,0.000149,2]
[342184027,1731561053631,-4101.0720106,0.000149,2]
[342184028,1731561053642,-4101.0720106,0.000149,2]
[342184029,1731561053651,-4101.0720106,0.000149,2]
[342184030,1731561053661,-4101.0720106,0.000149,2]
[342184031,1731561053671,-4101.0720106,0.000149,2]
[342184032,1731561053681,-4101.0720106,0.000149,2]
[342184033,1731561053691,-4101.0720106,0.000149,2]
[342184034,1731561053701,-4101.0720106,0.000149,2]
[342184035,1731561053711,-4101.0720106,0.000149,2]
[342184036,1731561053720,-4101.0720106,0.000149,2]
[342184037,1731561053729,-4101.0720106,0.000149,2]
[342184038,1731561053739,-4101.07,0.000149,2]
[342184039,1731561053748,-1083.97,0.00014931,2]
[342184040,1731561053757,-1487.77,0.00014931,2]
[342184041,1731561053767,-150.0,0.00014936,2]
[342184042,1731561053777,-5800.0,0.00014939,2]
[342184043,1731561053786,-5800.0,0.00014947,2]
[342184044,1731561053796,-5800.0,0.00014956,2]
[342184045,1731561053806,-500.0,0.00014964,2]
[342184046,1731561053816,-5800.0,0.00014964,2]
[342184047,1731561053826,-500.0,0.00014972,2]
[342184048,1731561053835,-5800.0,0.00014973,2]
[342184049,1731561053845,-500.0,0.00014978,2]
[342184050,1731561053856,-5800.0,0.00014981,2]
[342184051,1731561053866,-500.0,0.00014981,2]
[342184052,1731561053876,-499.999999,0.00014984,2]
[342184053,1731561053886,-8500.0,0.00014986,2]
[342184054,1731561053896,-8500.0,0.00014986,2]
[342184055,1731561053905,-500.0,0.00014987,2]
[342184056,1731561053915,-2323.8888899,0.00014989,2]
[342184057,1731561053924,-637.9426699,0.00014989,2]
[342184058,1731561053934,-5956.9196468,0.00014989,2]
[342184059,1731561053943,-4922.9014498,0.00014989,2]
[342184060,1731561053953,-5800.0,0.0001499,2]
[342184061,1731561053963,-5800.0,0.0001499,2]
[342184062,1731561053972,-500.0,0.0001499,2]
[342184063,1731561053982,-2717.3299498,0.0001499,2]
[342184064,1731561053991,-3110.7710097,0.0001499,2]
[342184065,1731561054000,-2083.5330875,0.0001499,2]
[342184066,1731561054010,-2436.2812201,0.0001499,2]
[342184067,1731561054019,-2789.0293527,0.0001499,2]
[342184068,1731561054029,-571.3653973,0.0001499,2]
[342184069,1731561054038,-671.1160209,0.0001499,2]
[342184070,1731561054048,-770.8666445,0.0001499,2]
[342184071,1731561054057,-752.7923203,0.0001499,2]
[342184072,1731561054067,-867.6419707,0.0001499,2]
[342184073,1731561054077,-7029.3516554,0.0001499,2]
[342184074,1731561054088,-8101.7836641,0.0001499,2]
[342184075,1731561054098,-5809.1778146,0.0001499,2]
[342184076,1731561054110,-6695.4541795,0.0001499,2]
[342184077,1731561054119,-47042.35322647,0.00014994,3]
[342184078,1731561054132,-6096.34999469,0.00014995,2]
[342184079,1731561054144,-8500.0,0.00014995,2]
[342184080,1731561054154,-8500.0,0.00014995,2]
[342184081,1731561054164,-8500.0,0.00014995,2]
[342184082,1731561054175,-8500.0,0.00014995,2]
[342184083,1731561054186,-500.0,0.00014996,2]
[342184084,1731561054196,-5800.0,0.00014998,2]
[342184085,1731561054206,-5800.0,0.00014998,2]
[342184086,1731561054216,-5800.0,0.00014998,2]
[342184087,1731561054226,-150.0,0.00014999,2]
[342184088,1731561054236,-1000.0,0.00014999,2]
[342184089,1731561054245,-2000.0,0.00014999,2]
[342184090,1731561054255,-9653.20805238,0.00015,2]
[342184091,1731561054265,-69652.77393956,0.00015,2]
[342184092,1731561054275,-18146103.67361552,0.00015,2]
[342184093,1731561054284,-5743149.04889441,0.00015,2]
[342184094,1731561054294,-201.5,0.00015,2]
[342184095,1731561054306,-799086.47074272,0.00015,2]
[342184096,1731561054319,-4039656.16058942,0.00015,2]
[342184097,1731561054332,-7599219.16638963,0.00015,2]
[342184098,1731561054342,-6903967.36633426,0.00015,2]
[342184100,1731561055799,-3405920.10689136,0.00015,2]
[342184101,1731561055819,-5477973.41033628,0.00015,2]
[342184102,1731561055834,-3407865.89148476,0.00015,2]
[342184103,1731561055848,-259.33935887,0.00015,2]
[342184104,1731561055873,-699.86,0.00015,2]
[342184105,1731561055893,-25090.38563748,0.00015,2]
[342184106,1731561055908,-4762.04061838,0.00015,2]
[342184107,1731561055921,-1323.4,0.00015,2]
[342184108,1731561055932,-42655.81046582,0.00015,2]
[342184111,1731561119030,-150.0,8.09e-05,2]
[342184112,1731561119829,-150.0,8.09e-05,2]
[342184113,1731561120582,-150.0,8.09e-05,2]
[342184114,1731561121442,-150.0,8.09e-05,2]
[342184115,1731561122816,-150.0,8.09e-05,2]
[342184116,1731561123608,-150.0,8.09e-05,2]
[342184117,1731561124329,-150.0,8.09e-05,2]
[342184118,1731561126432,-150.0,8.09e-05,2]
[342184119,1731561127798,-150.0,8.09e-05,2]
[342184120,1731561128346,-150.0,8.09e-05,2]
[342184121,1731561260867,-1398.6121,8.09e-05,2]
[342184122,1731561260890,-2937.3879,8.789e-05,2]
[342184222,1731562233239,-160.31,7.471e-05,2]
[342184223,1731562233249,-150.0,9e-05,2]
[342184224,1731562233259,-221.18394568,9e-05,3]
[342184225,1731562233271,-178.81605432,9e-05,3]
[342184226,1731562233279,-2713.58894881,9.199e-05,2]
[342184227,1731562233898,-321.4475672,9.199e-05,2]
[342184236,1731562237854,-468.31058399,9.199e-05,2]
[342184237,1731562237864,-263.5757,9.199e-05,2]
[342184238,1731562237873,-569.7283,9.199e-05,2]
[342184239,1731562237882,-2500.0,9.199e-05,2]
[342184240,1731562237897,-1198.979,9.211e-05,2]
[342184241,1731562237907,-9166.87107997,9.289e-05,2]
[342184242,1731562237922,-15159.92627888,9.289e-05,2]
[342184243,1731562237932,-1000.0,9.298e-05,2]
[342184244,1731562237941,-150.0,9.298e-05,2]
[342184245,1731562237951,-6042.43707494,9.299e-05,2]
[342184246,1731562237964,-229129.50322506,9.299e-05,2]
[342184247,1731562237974,-583062.4998,9.399e-05,2]
[342184248,1731562237986,-100000.0,9.399e-05,2]
[342184249,1731562237997,-200.0,9.459e-05,2]
[342184250,1731562238007,-1899.35,9.625e-05,2]
[342184251,1731562238016,-9999.99,9.67e-05,2]
[342184252,1731562238026,-930.65,9.67e-05,2]
[342184253,1731562238035,-3557.35,9.67e-05,2]
[342184254,1731562238045,-447.75,9.67e-05,2]
[342184255,1731562238055,-262.93,9.67e-05,2]
[342184256,1731562238064,-473.61,9.67e-05,2]
[342184257,1731562238074,-150.99,9.67e-05,2]
[342184258,1731562238083,-999.99,9.67e-05,2]
[342184259,1731562238093,-2206.6808895,9.7e-05,2]
[342184260,1731562238102,-6447.78,9.75e-05,2]
[342184261,1731562238112,-200.0,9.9e-05,2]
[342184262,1731562238121,-500.0,9.973e-05,2]
[342184263,1731562238130,-3161078.6394652,9.98e-05,2]
[342184264,1731562238143,-31546.0,9.997e-05,2]
[342184265,1731562238153,-8254.99852149,9.999e-05,2]
[342184266,1731562238165,-28414647.61327385,0.0001,2]
[342184267,1731562238184,-711.85380473,0.0001,2]
[342184268,1731562238196,-5306.65431983,0.0001,2]
[342184269,1731562238207,-999.30676198,0.0001,2]
[342184270,1731562238219,-12235.83354596,0.0001,2]
[342184271,1731562238351,-0.27663708,0.0001,2]
[342184281,1731562240173,-1948.0110708,0.0001,2]
[342184289,1731562243912,-6724.24762188,0.0001,2]
[342184290,1731562243923,-3006.0030084,0.0001,2]
[342184291,1731562243937,-14269.389368,0.0001,2]
[342184294,1731562245859,-717.748862,0.0001,2]
[342184295,1731562245978,-47784.35587683,0.0001,2]
[342184296,1731562245989,-1403.22638089,0.0001,2]
[342184297,1731562702111,9042.45143363,5e-05,14]
[342184298,1731562898460,477.3894561,0.000217,120]
[342184300,1731563151448,-1775.39,8.219e-05,2]
[342184301,1731563214925,2008.85,8.488e-05,2]
[342184302,1731563231387,150.0,8.42e-05,2]
[342184303,1731563231408,100.0,8.42e-05,2]
[342184304,1731563234990,-150.0,8.515e-05,2]
[342184305,1731563236149,-150.0,8.515e-05,2]
[342184306,1731563236887,-150.0,8.515e-05,2]
[342184307,1731563239324,-33.94,8.515e-05,2]
[342184308,1731563239349,-116.06,8.515e-05,2]
[342184309,1731563242440,-150.0,8.515e-05,2]
[342184310,1731563243015,-150.0,8.515e-05,2]
[342184311,1731563243524,-150.0,8.515e-05,2]
[342184312,1731563244588,-150.0,8.515e-05,2]
[342184313,1731563246700,-150.0,8.515e-05,2]
[342184314,1731563247810,-150.0,8.515e-05,2]
[342184315,1731563248983,-150.0,8.515e-05,2]
[342184316,1731563250376,-150.0,8.515e-05,2]
[342184317,1731563251454,-150.0,8.515e-05,2]
[342184318,1731563277359,190.02,8.392e-05,2]
[342184319,1731563277381,4589.69,8.392e-05,2]
[342184320,1731563277412,165.28,8.392e-05,2]
[342184321,1731563351877,-1087.83,8.515e-05,2]
[342184322,1731563351898,-200.0,8.558e-05,2]
[342184323,1731563351921,-1852.42,8.579e-05,2]
[342184324,1731563351944,-925.32,8.583e-05,2]
[342184325,1731563351967,-250.0,8.668e-05,2]
[342184326,1731563351989,-300.0,8.671e-05,2]
[342184327,1731563352011,-23900.0,8.672e-05,2]
[342184328,1731563352032,-150.0,8.685e-05,2]
[342184329,1731563352053,-1178.08,8.693e-05,2]
[342184330,1731563352076,-156.35,8.717e-05,2]
[342184335,1731563373949,-1000.0,8.612e-05,2]
[342184336,1731563373971,-165.28,8.992e-05,2]
[342184337,1731563373992,-150.0,9e-05,2]
[342184338,1731563374015,-400.0,9e-05,3]
[342184339,1731563374042,-180.9,9.015e-05,2]
[342184340,1731563374064,-1220.371,9.015e-05,2]
[342184341,1731563374086,-263.5757,9.099e-05,2]
[342184342,1731563374108,-1878.1862,9.099e-05,2]
[342184343,1731563374130,-462.0094,9.099e-05,2]
[342184344,1731563374152,-1520.8802,9.099e-05,2]
[342184345,1731563374174,-2500.0,9.099e-05,2]
[342184346,1731563374198,-800.0,9.1e-05,3]
[342184347,1731563374222,-1000.0,9.198e-05,2]
[342184348,1731563374245,-150.0,9.198e-05,2]
[342184349,1731563374268,-19769.5875,9.199e-05,2]
[342184351,1731563401227,-150.0,8.219e-05,2]
[342184352,1731563409346,-2291.78,8.219e-05,2]
[342184353,1731563409368,-300.0,9.198e-05,2]
[342184354,1731563409389,-2408.22,9.199e-05,2]
[342184371,1731563432098,-851.94168474,9.199e-05,2]
[342184381,1731563432205,-2865.63090043,9.199e-05,2]
[342184405,1731563432486,-22523.21453544,9.199e-05,2]
[342184406,1731563432505,-2663.91243218,9.199e-05,2]
[342184407,1731563432516,-1583.28024,9.199e-05,2]
[342184413,1731563438118,-300.0,8.669e-05,2]
[342184414,1731563438127,-3710.37000112,9.199e-05,2]
[342184415,1731563438138,-4677.18492924,9.199e-05,2]
[342184416,1731563438149,-1126.50512378,9.199e-05,2]
[342184417,1731563438254,-3644.14415542,9.199e-05,2]
[342184418,1731563438265,-8072.9020797,9.199e-05,2]
[342184419,1731563438276,-16032.38273914,9.199e-05,2]
[342184420,1731563438286,-8063.61724454,9.199e-05,2]
[342184421,1731563438297,-1625.81543385,9.199e-05,2]
[342184422,1731563438307,-1992.71021044,9.199e-05,2]
[342184423,1731563438318,-1000.12870326,9.199e-05,2]
[342184424,1731563438329,-2823.0,9.199e-05,2]
[342184425,1731563438363,-269.5843072,9.199e-05,2]
[342184426,1731563438375,-477358.36757952,9.199e-05,2]
[342184427,1731563438384,-100000.0,9.199e-05,2]
[342184428,1731563438393,-1200.0,9.2e-05,3]
[342184429,1731563438402,-150.0,9.25e-05,2]
[342184430,1731563438411,-1700.0,9.3e-05,3]
[342184431,1731563438420,-2100.0,9.4e-05,3]
[342184432,1731563438429,-400.0,9.5e-05,3]
[342184433,1731563438439,-150.0,9.5e-05,2]
[342184434,1731563438448,-1034.95,9.57e-05,2]
[342184435,1731563438458,-1034.95,9.572e-05,2]
[342184436,1731563438470,-1034.95,9.575e-05,2]
[342184437,1731563438479,-1034.95,9.577e-05,2]
[342184438,1731563438488,-1034.95,9.58e-05,2]
[342184439,1731563438497,-1034.95,9.582e-05,2]
[342184440,1731563438506,-1034.95,9.585e-05,2]
[342184441,1731563438515,-1034.95,9.587e-05,2]
[342184442,1731563438525,-1034.95,9.59e-05,2]
[342184443,1731563438534,-165.28,9.591e-05,2]
[342184444,1731563438544,-1034.95,9.593e-05,2]
[342184445,1731563438553,-1034.95,9.595e-05,2]
[342184446,1731563438563,-1034.95,9.598e-05,2]
[342184447,1731563438572,-400.0,9.6e-05,3]
[342184448,1731563438582,-1034.95,9.6e-05,2]
[342184449,1731563438593,-1034.95,9.603e-05,2]
[342184450,1731563438602,-1034.95,9.605e-05,2]
[342184451,1731563438612,-1034.95,9.608e-05,2]
[342184452,1731563438620,-1034.95,9.61e-05,2]
[342184453,1731563438634,-1034.95,9.613e-05,2]
[342184454,1731563438643,-1034.95,9.615e-05,2]
[342184455,1731563438652,-1034.95,9.618e-05,2]
[342184456,1731563438661,-164.42,9.673e-05,2]
[342184458,1731563438670,-1000.0,9.688e-05,2]
[342184460,1731563438680,-400.0,9.7e-05,3]
[342184462,1731563438688,-150.0,9.75e-05,2]
[342184464,1731563438698,-400.0,9.8e-05,3]
[342184465,1731563438707,-200.0,9.9e-05,2]
[342184466,1731563438716,-800.0,9.9e-05,3]
[342184467,1731563438725,-1020.4267,9.973e-05,2]
[342184468,1731563438734,-500.0,9.973e-05,2]
[342184469,1731563438744,-131630.35897902,9.999e-05,2]
[342184470,1731563438753,-41673.62981565,9.999e-05,2]
[342184471,1731563438763,-100606.43,9.999e-05,2]
[342184473,1731563438773,-31546.0,9.999e-05,2]
[342184475,1731563438783,-27540034.69872121,0.0001,2]
[342184477,1731563438795,-371.265,0.0001,2]
[342184480,1731563438806,-12028.41747918,0.0001,2]
[342184482,1731563438817,-52903.94888995,0.0001,2]
[342184585,1731563440074,-519.14717886,0.0001,2]
[342184586,1731563440086,-483.80163546,0.0001,2]
[342184587,1731563440180,-388.55324368,0.0001,2]
[342184588,1731563440284,-1590.65548125,0.0001,2]
[342184590,1731563440698,-78842.0,0.0001,2]
[342184596,1731563443639,-30246.85210211,0.0001,2]
[342184597,1731563443651,-5953.6622227,0.0001,2]
[342184598,1731563443662,-4893.12368864,0.0001,2]
[342184599,1731563443674,-707.05731817,0.0001,2]
[342184600,1731563443692,-373.5132,0.0001,2]
[342184601,1731563443706,-706.00256224,0.0001,2]
[342184602,1731563443717,-2016.6,0.0001,2]
[342184603,1731563443728,-2467.1499995,0.0001,2]
[342184604,1731563443740,-7440.45079688,0.0001,2]
[342184605,1731563443752,-1000.0,0.0001,2]
[342184606,1731563443774,-666.69174486,0.0001,2]
[342184607,1731563443786,-529.685291,0.0001,2]
[342184608,1731563443797,-3095.36681398,0.0001,2]
[342184609,1731563443809,-3197.54513101,0.0001,2]
[342184610,1731563443820,-426.29565446,0.0001,2]
[342184611,1731563443831,-7764.0017081,0.0001,2]
[342184616,1731563446100,-422.31475948,0.0001,2]
[342184617,1731563446112,-4671.58803117,0.0001,2]
[342184618,1731563446488,-106973.68097049,0.0001,2]
[342184619,1731563446499,-37701.09588244,0.0001,2]
[342184620,1731563446511,-458.35325032,0.0001,2]
[342184621,1731563446522,-937.87766667,0.0001,2]
[342184622,1731563446534,-10714.47,0.0001,2]
[342184624,1731563940080,200.45116518,8.29e-05,2]
[342184632,1731564112592,2392.83,8.219e-05,2]
[342184633,1731564143509,-566.76,8.792e-05,2]
[342184634,1731564143535,-250.0,8.862e-05,2]
[342184635,1731564143559,-200.0,8.897e-05,2]
[342184636,1731564143584,-1276.94,8.932e-05,2]
[342184637,1731564143611,-164.42,8.932e-05,2]
[342184638,1731564143635,-541.88,9.007e-05,2]
[342184663,1731564632281,-1310.54,8.562e-05,2]
[342184664,1731564632292,-200.0,8.641e-05,2]
[342184665,1731564632302,-23900.0,8.69e-05,2]
[342184666,1731564632312,-500.0,8.705e-05,2]
[342184667,1731564632321,-2996.26,8.707e-05,2]
[342184668,1731564632331,-2877.95,8.753e-05,2]
[342184669,1731564632340,-1000.0,8.862e-05,2]
[342184670,1731564632349,-12202.26,8.894e-05,2]
[342184671,1731564632359,-2000.0,8.9e-05,2]
[342184672,1731564632368,-342.11805696,8.962e-05,2]
[342184673,1731564632378,-210.47400043,9e-05,2]
[342184674,1731564632387,-1260.46,9.03e-05,2]
[342184675,1731564632396,-976.297,9.098e-05,2]
[342184676,1731564632405,-150.0,9.098e-05,2]
[342184677,1731564632416,-8308.1929,9.099e-05,2]
[342184678,1731564632425,-12951.19751637,9.099e-05,2]
[342184679,1731564632437,-8597.09588363,9.099e-05,2]
[342184680,1731564632446,-150.0,9.178e-05,2]
[342184681,1731564632455,-250.0,9.231e-05,2]
[342184682,1731564632465,-432.63,9.25e-05,2]
[342184683,1731564632474,-162.3,9.263e-05,2]
[342184684,1731564632484,-432.63,9.27e-05,2]
[342184685,1731564632493,-724.6,9.27e-05,2]
[342184686,1731564632502,-800.0,9.272e-05,2]
[342184687,1731564632512,-167.0,9.533e-05,2]
[342184688,1731564632521,-299.99,9.67e-05,2]
[342184689,1731564632533,-200.0,9.9e-05,2]
[342184690,1731564632542,-1000.0,9.9e-05,2]
[342184691,1731564632552,-2500.0,9.9e-05,2]
[342184692,1731564632561,-1000.0,9.969e-05,2]
[342184693,1731564632570,-502.11901539,9.973e-05,2]
[342184694,1731564632579,-503.94101987,9.973e-05,2]
[342184695,1731564632589,-613173.69408105,0.0001,2]
[342184696,1731564632604,-20260.33191707,0.0001,2]
[342184697,1731564632615,-2835.0291,0.0001,2]
[342184698,1731564632627,-2789.6533,0.0001,2]
[342184703,1731564638297,-1324.56794006,0.0001,2]